bitfinex-derivatives/quotes_ETHF0:USTF0_20241024
["timestamp","ask_amount","ask_price","bid_price","bid_amount"]
[1729741953173,0.92873,2551.0,2550.9,1.13097915]
[1729741953372,0.92873,2551.0,2550.9,1.25369801]
[1729741956677,0.92873,2551.0,2550.9,0.12271886]
[1729741956678,2.05970915,2551.0,2550.9,0.12271886]
[1729741957173,0.35315,2550.9,2550.8,0.5965]
[1729741957376,0.95905,2550.9,2550.8,0.71922105]
[1729741957569,0.95905,2550.9,2550.8,0.91557474]
[1729741958473,0.95905,2550.9,2550.8,0.31907474]
[1729741958674,5.17836531,2550.9,2550.8,0.31907474]
[1729741958879,6.30934446,2550.9,2550.8,0.31907474]
[1729741959069,6.30934446,2550.9,2550.8,0.12272105]
[1729741960575,6.30934446,2550.9,2550.8,0.12272625]
[1729741961181,0.35317,2550.7,2550.6,1.48416915]
[1729741961481,0.35317,2550.7,2550.6,1.2537085]
[1729741962175,0.35317,2550.7,2550.4,1.72357915]
[1729741962176,5.23942744,2550.7,2550.4,1.72357915]
[1729741962381,1.4697,2550.6,2550.5,0.47593844]
[1729741962678,1.4697,2550.6,2550.5,1.60691759]
[1729741962869,1.4697,2550.6,2550.5,1.25371759]
[1729741963180,1.4697,2550.6,2550.5,1.60691759]
[1729741963768,2.60067915,2550.6,2550.5,0.12273844]
[1729741963974,2.60067915,2550.6,2550.3,3.2078]
[1729741963975,0.35322,2550.4,2550.3,3.2078]
[1729741964272,1.48419915,2550.4,2550.3,3.2078]
[1729741964474,5.74923693,2550.4,2550.3,3.2078]
[1729741967378,0.35323,2550.3,2550.2,1.13097915]
[1729741967579,0.95483,2550.3,2550.2,1.13097915]
[1729741967778,5.09765659,2550.3,2550.2,1.13097915]
[1729741968285,5.69455659,2550.3,2550.2,1.13097915]
[1729741971090,5.34132659,2550.3,2550.1,3.2078]
[1729741971390,0.35324,2550.2,2550.1,3.2078]
[1729741971586,0.35324,2550.2,2550.1,1.13097915]
[1729741972190,4.74442659,2550.3,2550.1,1.13097915]
[1729741972490,0.35322,2550.4,2550.3,0.35323]
[1729741972689,0.35322,2550.4,2550.3,2.04430915]
[1729741972880,0.35322,2550.4,2550.3,2.63230915]
[1729741973284,4.97995243,2550.5,2550.3,2.27907915]
[1729741973489,5.33316243,2550.5,2550.4,1.48419915]
[1729741973687,5.33316243,2550.5,2550.4,1.13097915]
[1729741973989,5.33316243,2550.5,2550.4,1.48419915]
[1729741974194,5.33316243,2550.5,2550.4,1.13097915]
[1729741975278,4.97995243,2550.5,2550.3,2.63229915]
[1729741975493,0.35322,2550.4,2550.3,2.63229915]
[1729741976897,0.5582,2550.6,2550.4,0.35322]
[1729741977190,0.9114,2550.6,2550.5,1.13097915]
[1729741977391,0.3532,2550.6,2550.5,1.13097915]
[1729741979181,0.35319,2550.6,2550.5,1.48416915]
[1729741979386,4.33877915,2550.7,2550.5,1.48416915]
[1729741979691,1.48414915,2550.7,2550.6,0.5849]
[1729741980395,1.13097915,2550.7,2550.4,1.48418915]
[1729741980583,0.3532,2550.5,2550.4,1.71587915]
[1729741980785,0.3532,2550.5,2550.4,2.06909915]
[1729741982996,1.13097915,2550.7,2550.4,1.71587915]
[1729741983294,0.35319,2550.6,2550.5,0.3532]
[1729741984301,1.13097915,2550.7,2550.4,1.71587915]
[1729741984495,0.3532,2550.5,2550.4,1.71587915]
[1729741984997,0.3532,2550.5,2550.4,2.06909915]
[1729741985995,0.3532,2550.5,2550.4,0.5849]
[1729741986503,1.48417915,2550.5,2550.4,0.5849]
[1729741986697,2.08897915,2550.5,2550.4,0.5849]
[1729741987600,0.35322,2550.4,2550.3,1.1481]
[1729741987998,1.48419915,2550.4,2550.3,0.5601]
[1729741989106,0.35324,2550.2,2550.1,4.33877915]
[1729741989599,0.35324,2550.2,2550.1,3.2078]
[1729741990105,1.54564,2550.2,2550.1,3.2078]
[1729741990506,0.35326,2550.1,2550.0,1.70937915]
[1729741991401,0.35326,2550.1,2550.0,2.06264915]
[1729741992499,0.35326,2550.1,2550.0,1.70937915]
[1729741993600,0.35326,2550.1,2550.0,0.5784]
[1729741993910,1.48423915,2550.1,2550.0,0.5784]
[1729741995616,0.35327,2550.0,2549.9,1.13097915]
[1729741995813,0.35327,2550.0,2549.9,1.48426915]
[1729741997609,2.04734915,2550.1,2549.9,1.48426915]
[1729742000712,0.35327,2550.0,2549.9,1.13097915]
[1729742001717,0.35327,2550.0,2549.9,1.48426915]
[1729742001909,0.35327,2550.0,2549.9,1.13097915]
[1729742002418,0.35327,2550.0,2549.9,1.48426915]
[1729742006021,2.04734915,2550.1,2549.9,1.48426915]
[1729742006421,4.54846013,2550.0,2549.9,1.48426915]
[1729742006611,4.54846013,2550.0,2549.9,1.60703198]
[1729742006817,4.90173013,2550.0,2549.9,1.60703198]
[1729742007520,4.90173013,2550.0,2549.9,1.25374181]
[1729742007733,4.90173013,2550.0,2549.8,1.48426915]
[1729742007916,0.6,2549.9,2549.8,1.48426915]
[1729742008117,0.6,2549.9,2549.8,1.60703512]
[1729742009427,0.6,2549.9,2549.8,1.25374512]
[1729742009629,2.08426915,2549.9,2549.8,0.12276597]
[1729742010331,1.73097915,2549.9,2549.7,1.1647]
[1729742010524,0.3533,2549.8,2549.7,1.1647]
[1729742010920,0.899,2549.8,2549.7,0.5806]
[1729742014724,0.5457,2549.8,2549.7,0.5806]
[1729742015033,0.5457,2549.8,2549.7,0.93391]
[1729742015525,0.5457,2549.8,2549.7,2.06488915]
[1729742017434,0.5457,2549.8,2549.7,2.18766193]
[1729742017729,0.5457,2549.8,2549.7,2.06488915]
[1729742017930,0.899,2549.8,2549.7,0.5806]
[1729742018231,0.899,2549.8,2549.7,0.93391]
[1729742018435,0.5457,2549.8,2549.6,1.13097915]
[1729742018832,0.35331,2549.7,2549.6,1.13097915]
[1729742019026,0.35331,2549.7,2549.6,1.48430915]
[1729742019329,0.89901,2549.8,2549.6,1.48430915]
[1729742019529,1.13097915,2549.7,2549.6,0.35333]
[1729742019731,5.6828929,2549.7,2549.6,0.35333]
[1729742020536,6.0362029,2549.7,2549.6,0.35333]
[1729742020725,5.6828929,2549.7,2549.6,0.35333]
[1729742023231,6.0362029,2549.7,2549.6,0.35333]
[1729742025434,0.35334,2549.5,2549.4,0.5578]
[1729742025730,1.48431915,2549.5,2549.4,0.5578]
[1729742029237,1.48431915,2549.5,2549.4,0.68058135]
[1729742029435,1.48431915,2549.5,2549.4,0.5578]
[1729742029639,1.13097915,2549.5,2549.4,2.04212915]
[1729742029838,1.13097915,2549.5,2549.4,2.1649105]
[1729742030935,1.48431915,2549.5,2549.4,1.8115605]
[1729742032743,1.48431915,2549.5,2549.4,0.68058135]
[1729742034245,1.48431915,2549.5,2549.4,1.03393135]
[1729742034246,1.13097915,2549.5,2549.4,1.03393135]
[1729742036643,1.48431915,2549.5,2549.4,0.5578]
[1729742037346,1.48431915,2549.5,2549.4,0.68058164]
[1729742040552,1.48431915,2549.5,2549.4,0.68058163]
[1729742042140,1.48431915,2549.5,2549.4,0.68058164]
[1729742042449,1.48431915,2549.5,2549.4,1.03393164]
[1729742042650,1.48431915,2549.5,2549.4,0.68058164]
[1729742046852,1.48431915,2549.5,2549.4,0.6805909]
[1729742048448,1.13097915,2549.5,2549.1,0.5359]
[1729742048754,0.35337,2549.3,2549.2,0.87706326]
[1729742048951,0.35337,2549.3,2549.2,1.23044326]
[1729742049271,0.5763,2549.3,2549.2,0.87706326]
[1729742049557,0.5763,2549.3,2549.2,1.23044326]
[1729742049558,0.92967,2549.3,2549.2,1.23044326]
[1729742049757,0.5763,2549.3,2549.2,1.23044326]
[1729742050459,0.92967,2549.3,2549.2,1.23044326]
[1729742050865,2.06064915,2549.3,2549.2,0.87706326]
[1729742052162,2.06064915,2549.3,2549.2,1.23044326]
[1729742052356,1.70727915,2549.3,2549.2,1.23044326]
[1729742052756,1.70727915,2549.3,2549.2,0.87706326]
[1729742052957,1.70727915,2549.3,2549.2,1.23044326]
[1729742053461,1.70727915,2549.3,2549.2,0.87706326]
[1729742053652,1.70727915,2549.3,2549.2,1.23044326]
[1729742054862,1.70727915,2549.3,2549.2,1.84440104]
[1729742057866,1.70727915,2549.3,2549.2,1.84441322]
[1729742058469,1.70727915,2549.3,2549.2,1.84441398]
[1729742058863,2.06064915,2549.3,2549.2,1.49103398]
[1729742059058,2.06064915,2549.3,2549.2,0.73676383]
[1729742059059,3.1916283,2549.3,2549.2,0.73676383]
[1729742059262,3.1916283,2549.3,2548.8,2.11374531]
[1729742059263,9.92203954,2549.3,2549.1,0.35339]
[1729742059463,1.48435915,2549.2,2549.0,0.3534]
[1729742059664,1.13097915,2549.1,2549.0,0.35341]
[1729742059862,4.68357,2549.3,2549.1,0.35339]
[1729742060067,1.13097915,2549.2,2549.1,0.35339]
[1729742060269,5.64809481,2549.2,2549.1,0.1228028]
[1729742060463,5.64809481,2549.2,2549.1,0.4762028]
[1729742060668,5.29471481,2549.2,2549.1,0.4762028]
[1729742061165,5.29471481,2549.2,2549.1,0.3534]
[1729742061576,5.29471481,2549.2,2549.1,0.47620304]
[1729742061869,1.13097915,2549.2,2549.1,0.47620304]
[1729742063276,1.13097915,2549.2,2549.1,0.3534]
[1729742064672,1.13097915,2549.2,2549.1,0.47620356]
[1729742065471,1.13097915,2549.2,2549.1,0.12280356]
[1729742065472,1.48435915,2549.2,2549.1,0.12280356]
[1729742067270,0.3534,2549.1,2549.0,0.3534]
[1729742068174,1.1224,2549.3,2548.9,0.5411]
[1729742068473,1.13097915,2549.1,2549.0,0.35341]
[1729742070876,0.35338,2549.2,2549.1,0.3534]
[1729742071075,1.48435915,2549.2,2549.1,0.3534]
[1729742074474,1.13097915,2549.2,2549.1,0.3534]
[1729742074673,1.48435915,2549.2,2549.1,0.3534]
[1729742077976,1.48435915,2549.2,2549.1,0.47620186]
[1729742081087,1.48435915,2549.2,2549.1,0.3534]
[1729742081385,1.48435915,2549.2,2549.1,0.12280253]
[1729742084780,0.35341,2549.0,2548.9,0.89452]
[1729742084976,1.48438915,2549.0,2548.9,1.01732601]
[1729742085183,1.48438915,2549.0,2548.9,1.82784572]
[1729742085582,1.48438915,2549.0,2548.9,1.21381563]
[1729742086086,1.48438915,2549.0,2548.9,1.01732601]
[1729742090986,1.13097915,2549.0,2548.9,1.01732601]
[1729742091493,2.21667915,2549.0,2548.9,1.01732601]
[1729742092195,2.57008915,2549.0,2548.9,0.5411]
[1729742092392,2.57008915,2549.0,2548.9,0.66390766]
[1729742092698,2.57008915,2549.0,2548.9,0.47622766]
[1729742093286,2.21667915,2549.0,2548.9,0.47622766]
[1729742093488,2.21667915,2549.0,2548.9,0.12281347]
[1729742093691,2.21667915,2549.0,2548.7,0.5299]
[1729742093692,2.21667915,2549.0,2548.7,0.88334]
[1729742093897,1.13097915,2548.8,2548.7,0.88334]
[1729742094093,1.13097915,2548.8,2548.7,1.81673228]
[1729742094392,1.13097915,2548.8,2548.7,1.81673584]
[1729742095295,1.13097915,2548.8,2548.7,1.6202322]
[1729742095791,1.13097915,2548.8,2548.7,1.20266113]
[1729742095997,1.13097915,2548.8,2548.7,1.81673734]
[1729742096198,1.13097915,2548.8,2548.7,1.81673811]
[1729742100096,1.13097915,2548.8,2548.7,2.79924829]
[1729742100798,1.13097915,2548.8,2548.7,1.81673811]
[1729742101907,1.13097915,2548.9,2548.8,0.35344]
[1729742102113,1.67467915,2549.0,2548.9,0.35342]
[1729742102309,1.67467915,2549.0,2548.9,0.89452]
[1729742102713,1.67467915,2549.0,2548.9,1.50855602]
[1729742102912,1.13097915,2549.1,2549.0,0.35341]
[1729742103112,1.13097915,2549.1,2549.0,1.48800694]
[1729742106010,1.13097915,2549.1,2549.0,1.48801538]
[1729742113323,1.13097915,2549.1,2549.0,1.48803187]
[1729742115822,1.13097915,2549.1,2549.0,0.87401]
[1729742116815,1.13097915,2549.1,2548.8,4.77661638]
[1729742117022,0.35341,2549.0,2548.9,0.35342]
[1729742117320,0.35341,2549.0,2548.8,3.56123]
[1729742117527,1.68847915,2548.9,2548.8,3.56123]
[1729742117727,1.68847915,2548.9,2548.8,4.17528265]
[1729742119625,0.5725,2549.1,2549.0,0.35341]
[1729742119819,1.70347915,2549.1,2549.0,0.35341]
[1729742120022,0.5725,2549.1,2549.0,0.35341]
[1729742120221,2.05687915,2549.1,2549.0,0.87841]
[1729742120421,1.70347915,2549.1,2549.0,0.87841]
[1729742121423,2.05687915,2549.1,2549.0,0.87841]
[1729742122820,2.05687915,2549.1,2549.0,1.49243211]
[1729742123428,2.05687915,2549.1,2549.0,1.13902211]
[1729742124232,2.05687915,2549.1,2549.0,1.49243211]
[1729742124834,2.05687915,2549.1,2549.0,1.49242996]
[1729742126628,2.05687915,2549.1,2549.0,0.61401996]
[1729742128234,0.35341,2549.0,2548.9,0.35342]
[1729742128430,1.48438915,2549.0,2548.9,0.35342]
[1729742129740,1.13097915,2549.0,2548.9,0.35342]
[1729742130241,1.13097915,2549.0,2548.9,0.96745255]
[1729742131044,1.48438915,2549.0,2548.9,1.58148725]
[1729742131539,1.48438915,2549.0,2548.9,1.22806725]
[1729742132142,1.48438915,2549.0,2548.9,1.73906725]
[1729742133141,1.48438915,2549.0,2548.9,2.09248725]
[1729742133638,1.13097915,2549.0,2548.9,1.73906725]
[1729742133836,1.48438915,2549.0,2548.9,1.73906725]
[1729742134436,1.13097915,2549.0,2548.9,2.09248725]
[1729742134635,1.13097915,2549.0,2548.9,1.73906725]
[1729742134844,1.48438915,2549.0,2548.9,1.73907242]
[1729742135533,0.35341,2549.0,2548.9,1.73907242]
[1729742136242,0.35341,2549.0,2548.9,1.93556771]
[1729742136439,0.35341,2549.0,2548.9,2.05837726]
[1729742136836,0.35341,2549.0,2548.9,2.3039941]
[1729742137430,0.35341,2549.0,2548.9,2.05837726]
[1729742137631,0.87141,2549.0,2548.9,1.54737726]
[1729742137832,41.67141,2549.0,2548.9,0.7368421]
[1729742138439,0.87141,2549.0,2548.9,0.73684588]
[1729742140944,2.00238915,2549.0,2548.9,0.73684588]
[1729742141144,2.00238915,2549.0,2548.9,0.12281333]
[1729742141447,0.35345,2548.7,2548.6,2.06631638]
[1729742141651,0.35345,2548.7,2548.6,2.99973293]
[1729742142443,0.35345,2548.7,2548.6,2.99972802]
[1729742143146,0.35345,2548.7,2548.6,1.97011164]
[1729742144150,0.35345,2548.7,2548.6,1.35602503]
[1729742145950,0.35345,2548.7,2548.6,1.9701229]
[1729742146345,1.48442915,2548.7,2548.6,0.9334229]
[1729742146553,2.00562915,2548.7,2548.6,0.9334229]
[1729742146743,2.00562915,2548.7,2548.6,0.93346016]
[1729742146942,2.00562915,2548.7,2548.6,0.31932888]
[1729742147148,2.00562915,2548.7,2548.6,0.1228188]
[1729742149445,2.00562915,2548.7,2548.6,0.122834]
[1729742152649,6.23742658,2548.7,2548.6,0.122834]
[1729742152845,5.88397658,2548.7,2548.6,0.12283288]
[1729742153051,0.35348,2548.5,2548.3,1.48448915]
[1729742153252,1.13097915,2548.4,2548.3,1.48448915]
[1729742153446,1.60787915,2548.4,2548.3,2.41802028]
[1729742154249,1.60787915,2548.4,2548.3,1.45034506]
[1729742155547,1.60787915,2548.4,2548.3,0.31936591]
[1729742155844,1.60787915,2548.4,2548.3,0.12283304]
[1729742156449,1.60787915,2548.4,2548.3,0.47634304]
[1729742157348,1.60787915,2548.4,2548.3,0.12283304]
[1729742157545,1.60787915,2548.4,2548.2,3.56132]
[1729742157546,1.96136915,2548.4,2548.2,3.56132]
[1729742157751,1.96137915,2548.4,2548.2,3.2078]
[1729742158347,1.48448915,2548.3,2548.2,3.2078]
[1729742158553,1.13097915,2548.3,2548.2,3.33064098]
[1729742159545,1.13097915,2548.3,2548.2,0.12284098]
[1729742159753,1.13097915,2548.3,2548.2,3.33064098]
[1729742159954,1.48448915,2548.3,2548.2,3.2078]
[1729742160960,1.48448915,2548.3,2548.2,3.3306424]
[1729742161159,1.48448915,2548.3,2548.2,0.1228424]
[1729742162055,0.35356,2548.0,2547.9,3.2078]
[1729742162265,0.35358,2547.8,2547.7,0.4069]
[1729742162455,1.48455915,2547.8,2547.7,0.52976394]
[1729742162654,1.48455915,2547.8,2547.7,0.4069]
[1729742162865,0.35354,2548.1,2547.7,1.53787915]
[1729742163060,1.13097915,2547.9,2547.8,0.75778]
[1729742164250,1.13097915,2548.0,2547.9,0.35356]
[1729742166954,1.13097915,2548.0,2547.9,0.74936]
[1729742167360,1.48452915,2548.0,2547.9,0.74936]
[1729742167654,1.48452915,2548.0,2547.9,0.3958]
[1729742168067,1.48452915,2548.0,2547.8,0.35357]
[1729742168068,1.13097915,2548.0,2547.8,0.35357]
[1729742168368,0.35358,2547.8,2547.7,0.4069]
[1729742168570,1.48455915,2547.8,2547.7,0.4069]
[1729742168770,1.92125915,2547.8,2547.7,0.4069]
[1729742172375,1.56767915,2547.8,2547.7,1.53787915]
[1729742172871,0.35357,2547.9,2547.7,1.53787915]
[1729742172872,1.48454915,2547.9,2547.7,1.89146915]
[1729742173169,1.13097915,2547.9,2547.7,1.53787915]
[1729742173377,1.13097915,2547.9,2547.8,0.35358]
[1729742174473,1.13097915,2548.0,2547.8,1.13097915]
[1729742174874,1.13097915,2548.0,2547.9,0.76756]
[1729742175076,1.13097915,2548.0,2547.9,0.414]
[1729742175375,1.48452915,2548.0,2547.9,0.76756]
[1729742176173,1.13097915,2548.0,2547.9,0.76756]
[1729742176677,1.13097915,2548.1,2547.9,0.414]
[1729742176873,1.13097915,2548.1,2548.0,1.19365]
[1729742177275,1.48450915,2548.1,2548.0,0.8401]
[1729742177777,1.48450915,2548.1,2548.0,1.19365]
[1729742178371,1.48450915,2548.1,2548.0,0.8401]
[1729742178569,1.13097915,2548.1,2548.0,0.8401]
[1729742178765,1.13097915,2548.1,2548.0,1.19365]
[1729742178966,1.48450915,2548.1,2548.0,1.19365]
[1729742179478,1.13097915,2548.1,2548.0,1.19365]
[1729742179879,1.48450915,2548.1,2548.0,1.19365]
[1729742182682,1.48450915,2548.1,2548.0,0.77235]
[1729742182875,1.90570915,2548.1,2548.0,0.77235]
[1729742183277,1.90570915,2548.1,2548.0,0.4188]
[1729742183479,1.90570915,2548.1,2547.7,0.4285]
[1729742183480,1.55217915,2548.1,2547.7,0.4285]
[1729742183782,1.48455915,2547.8,2547.7,0.3957]
[1729742186286,0.35356,2548.0,2547.7,0.3957]
[1729742186483,1.13097915,2547.8,2547.7,0.74929]
[1729742187084,1.54847915,2547.8,2547.7,0.74929]
[1729742191190,0.4175,2547.8,2547.7,1.88026915]
[1729742191787,1.13097915,2547.9,2547.7,1.52667915]
[1729742191989,1.13097915,2547.9,2547.8,0.35358]
[1729742192882,1.13097915,2547.9,2547.8,3.56138]
[1729742194586,1.13097915,2547.9,2547.8,0.35358]
[1729742198290,1.13097915,2547.9,2547.8,0.47644051]
[1729742198487,1.48453915,2547.9,2547.8,0.47644051]
[1729742198691,1.13097915,2547.9,2547.8,0.47644051]
[1729742199794,1.48453915,2547.9,2547.8,0.47644051]
[1729742201191,1.13097915,2547.9,2547.8,0.47644051]
[1729742201395,1.48453915,2547.9,2547.8,0.47644051]
[1729742201690,1.48453915,2547.9,2547.8,0.47644047]
[1729742204196,1.48453915,2547.9,2547.8,0.67301964]
[1729742204793,1.13097915,2547.9,2547.8,0.67301964]
[1729742204995,1.13097915,2547.9,2547.8,1.28731369]
[1729742205197,1.13097915,2547.9,2547.8,0.35358]
[1729742205394,1.13097915,2547.9,2547.8,1.28729621]
[1729742208599,1.91822915,2548.0,2547.9,0.35356]
[1729742208801,1.91822915,2548.0,2547.9,0.67298922]
[1729742208994,1.91822915,2548.0,2547.9,0.47641823]
[1729742209201,1.91822915,2548.0,2547.9,1.2872834]
[1729742209400,1.91822915,2548.0,2547.9,0.35356]
[1729742209601,1.91822915,2548.0,2547.9,1.09070974]
[1729742209799,1.91822915,2548.0,2547.9,1.287283]
[1729742211106,1.91822915,2548.0,2547.9,0.933723]
[1729742211406,1.91822915,2548.0,2547.9,1.28729739]
[1729742211605,2.33832915,2548.0,2547.9,1.28729762]
[1729742212807,2.33832915,2548.0,2547.9,1.28729251]
[1729742214005,2.33832915,2548.0,2547.9,0.93373251]
[1729742214210,2.33832915,2548.0,2547.9,0.93373637]
[1729742214702,2.33832915,2548.0,2547.9,1.28729637]
[1729742215301,2.33832915,2548.0,2547.9,0.67299541]
[1729742215503,1.20735,2548.0,2547.9,1.28730279]
[1729742215709,0.78725,2548.0,2547.9,1.28730279]
[1729742217009,1.91822915,2548.0,2547.9,1.28730279]
[1729742220116,1.91822915,2548.0,2547.9,1.2872957]
[1729742220617,1.91822915,2548.0,2547.9,1.28728889]
[1729742221016,1.91822915,2548.0,2547.9,1.28729146]
[1729742221518,1.91822915,2548.0,2547.9,0.67299797]
[1729742222016,1.91822915,2548.0,2547.9,1.2873044]
[1729742222817,0.4337,2548.0,2547.9,1.28730002]
[1729742224518,0.4337,2548.0,2547.9,2.41827917]
[1729742224819,0.4337,2548.0,2547.9,2.66398401]
[1729742225019,1.13097915,2548.1,2548.0,0.35355]
[1729742225217,1.13097915,2548.1,2548.0,2.09069002]
[1729742226314,1.13097915,2548.1,2548.0,1.35352792]
[1729742226513,0.4182,2548.2,2548.0,2.86806699]
[1729742226716,0.4182,2548.2,2548.1,1.16433206]
[1729742227021,0.4182,2548.2,2548.1,1.28718572]
[1729742227726,0.4182,2548.2,2548.1,2.41816487]
[1729742228522,0.4182,2548.2,2548.1,1.80392867]
[1729742228817,0.4182,2548.2,2548.1,1.60736281]
[1729742228818,1.54917915,2548.2,2548.1,1.60736281]
[1729742229016,1.54917915,2548.2,2548.1,0.47638366]
[1729742229415,0.77172,2548.2,2548.1,0.47638366]
[1729742229615,1.90269915,2548.2,2548.1,0.47638366]
[1729742230216,1.90269915,2548.2,2548.1,0.47638131]
[1729742230620,1.90269915,2548.2,2548.1,0.35353]
[1729742230824,1.90269915,2548.2,2548.1,0.47638121]
[1729742233219,1.90269915,2548.2,2548.1,0.12285121]
[1729742233726,1.54917915,2548.2,2548.1,0.12285776]
[1729742233924,1.54917915,2548.2,2547.9,0.35356]
[1729742233925,0.35355,2548.0,2547.9,0.35356]
[1729742234133,1.48452915,2548.0,2547.9,0.67299231]
[1729742235218,1.13097915,2548.0,2547.9,0.67299231]
[1729742235416,1.48452915,2548.0,2547.9,0.67299231]
[1729742235619,1.48452915,2548.0,2547.9,1.28727107]
[1729742236326,1.13097915,2548.0,2547.9,1.28727107]
[1729742236823,1.56707915,2548.1,2548.0,0.35355]
[1729742237023,1.56707915,2548.1,2548.0,1.28726107]
[1729742237724,1.92060915,2548.1,2548.0,0.93371107]
[1729742237924,1.92060915,2548.1,2548.0,0.93369003]
[1729742239832,1.92060915,2548.1,2548.0,1.28724003]
[1729742241533,1.92060915,2548.1,2548.0,0.93369003]
[1729742241724,1.92060915,2548.1,2548.0,0.93367641]
[1729742242120,1.92060915,2548.1,2548.0,0.93369074]
[1729742244225,1.92060915,2548.1,2548.0,1.28724074]
[1729742245836,1.56707915,2548.1,2548.0,1.28724074]
[1729742246038,0.4361,2548.1,2548.0,1.28724074]
[1729742246231,0.77172,2548.2,2548.1,0.35353]
[1729742246431,0.77172,2548.2,2548.1,1.0787431]
[1729742246635,0.77172,2548.2,2548.1,0.7252131]
[1729742246837,0.77172,2548.2,2548.1,0.52865404]
[1729742249440,0.77172,2548.2,2548.1,0.5286519]
[1729742250534,0.77172,2548.2,2548.1,0.1228519]
[1729742250735,2.31959915,2548.2,2548.1,0.1228519]
[1729742253847,2.31959915,2548.2,2547.8,3.6335]
[1729742253848,0.35353,2548.1,2548.0,0.35354]
[1729742254141,1.90550915,2548.1,2548.0,1.16437459]
[1729742254344,1.90550915,2548.1,2548.0,1.28722835]
[1729742255145,1.90550915,2548.1,2548.0,0.93368835]
[1729742255340,1.90550915,2548.1,2548.0,1.28723835]
[1729742257135,1.90550915,2548.1,2548.0,0.35355]
[1729742257439,1.90550915,2548.1,2548.0,0.93369416]
[1729742258441,0.77453,2548.1,2548.0,1.28724416]
[1729742258848,0.77453,2548.1,2548.0,0.67297168]
[1729742259450,0.77453,2548.1,2548.0,0.31942168]
[1729742260851,0.77453,2548.1,2548.0,0.3194266]
[1729742261050,0.77453,2548.1,2548.0,0.12285638]
[1729742261441,1.90550915,2548.1,2548.0,0.12285638]
[1729742264153,6.05145109,2548.1,2548.0,0.12285638]
[1729742264450,5.69792109,2548.1,2547.6,2.05593371]
[1729742264747,1.13097915,2547.8,2547.7,0.55015923]
[1729742264947,1.13097915,2547.8,2547.7,2.39308798]
[1729742265148,1.98517915,2547.8,2547.7,2.5159499]
[1729742265342,1.98517915,2547.8,2547.7,1.53305448]
[1729742266044,1.98517915,2547.8,2547.7,2.51595308]
[1729742266347,1.98517915,2547.8,2547.7,1.95078823]
[1729742266651,1.98517915,2547.8,2547.7,2.51595363]
[1729742268145,1.98517915,2547.8,2547.7,2.51593345]
[1729742269547,2.33875915,2547.8,2547.7,0.93374353]
[1729742271752,2.33875915,2547.8,2547.7,1.28733353]
[1729742271950,2.33875915,2547.8,2547.7,0.93374353]
[1729742272858,2.33875915,2547.8,2547.7,0.31943857]
[1729742273851,2.33875915,2547.8,2547.7,0.12286099]
[1729742275651,2.33875915,2547.8,2547.6,0.3536]
[1729742275851,1.13097915,2547.7,2547.6,0.3536]
[1729742276153,1.13097915,2547.7,2547.6,1.28742309]
[1729742276956,1.48456915,2547.7,2547.6,1.28742309]
[1729742277256,1.48456915,2547.7,2547.6,0.93382309]
[1729742277653,1.48456915,2547.7,2547.6,1.28742309]
[1729742277949,1.13097915,2547.7,2547.6,1.28742309]
[1729742278154,1.48456915,2547.7,2547.6,1.28742309]
[1729742278354,1.13097915,2547.7,2547.6,1.28742309]
[1729742278952,1.13097915,2547.7,2547.6,0.67306557]
[1729742279259,1.13097915,2547.7,2547.6,0.93382528]
[1729742279461,1.48456915,2547.7,2547.6,0.93382528]
[1729742279856,1.13097915,2547.7,2547.6,1.28742528]
[1729742280553,1.48456915,2547.7,2547.6,0.31946557]
[1729742281155,1.48456915,2547.7,2547.6,0.12287137]
[1729742281659,1.48456915,2547.7,2547.6,0.12287373]
[1729742282160,1.48456915,2547.7,2547.6,0.47647373]
[1729742283154,1.48456915,2547.7,2547.6,0.12287373]
[1729742283953,1.48456915,2547.7,2547.6,0.47647373]
[1729742284555,1.20778,2547.8,2547.6,0.47647373]
[1729742284758,1.20778,2547.8,2547.6,0.3536]
[1729742284955,1.20778,2547.8,2547.7,0.12287318]
[1729742285158,1.98517915,2547.8,2547.5,0.76491]
[1729742285358,1.13097915,2547.6,2547.5,0.76491]
[1729742285658,0.35359,2547.7,2547.5,1.08438214]
[1729742285860,1.13097915,2547.6,2547.5,0.76491]
[1729742286063,1.13097915,2547.6,2547.5,1.0843801]
[1729742288266,1.48457915,2547.6,2547.5,0.88778311]
[1729742288463,1.48457915,2547.6,2547.5,0.53417311]
[1729742288656,1.48457915,2547.6,2547.5,0.4113]
[1729742288861,1.48457915,2547.6,2547.5,0.53417687]
[1729742289164,1.48457915,2547.6,2547.5,0.88779687]
[1729742289165,1.13097915,2547.6,2547.5,0.88779687]
[1729742292270,1.13097915,2547.6,2547.5,0.76492]
[1729742292472,1.13097915,2547.6,2547.5,0.8877946]
[1729742292972,1.48457915,2547.6,2547.5,0.8877946]
[1729742294274,1.48457915,2547.6,2547.5,0.5341746]
[1729742295374,1.48457915,2547.6,2547.5,0.8877946]
[1729742295875,1.48457915,2547.6,2547.5,0.8877954]
[1729742296173,1.48457915,2547.6,2547.5,0.88779573]
[1729742298372,0.8542,2547.8,2547.5,0.53417573]
[1729742298570,0.78918,2547.8,2547.7,0.35359]
[1729742298878,0.78918,2547.8,2547.7,0.47646573]
[1729742298879,1.92015915,2547.8,2547.7,0.47646573]
[1729742301481,1.56657915,2547.8,2547.7,0.47646573]
[1729742301682,0.4356,2547.8,2547.7,0.47646573]
[1729742301880,0.35357,2547.9,2547.8,0.35358]
[1729742302176,0.35357,2547.9,2547.8,0.55707573]
[1729742302177,1.48454915,2547.9,2547.8,0.55707573]
[1729742304678,1.48454915,2547.9,2547.8,0.12287573]
[1729742305176,1.48454915,2547.9,2547.5,0.4396]
[1729742305177,0.3536,2547.6,2547.5,0.4396]
[1729742305483,1.48457915,2547.6,2547.5,0.56248106]
[1729742306485,1.48457915,2547.6,2547.5,0.56248177]
[1729742308382,1.48457915,2547.6,2547.5,0.75908857]
[1729742308880,1.48457915,2547.6,2547.5,1.72709349]
[1729742309085,1.48457915,2547.6,2547.5,1.37347349]
[1729742310284,1.48457915,2547.6,2547.5,1.37346829]
[1729742312691,1.48457915,2547.6,2547.5,0.56247822]
[1729742313594,1.48457915,2547.6,2547.5,0.4396]
[1729742313789,1.48457915,2547.6,2547.5,0.56247974]
[1729742314087,1.48457915,2547.6,2547.5,0.12287974]
[1729742315187,1.48457915,2547.6,2547.5,0.31948699]
[1729742315491,1.48457915,2547.6,2547.5,0.12287974]
[1729742316190,1.48457915,2547.6,2547.5,0.31948749]
[1729742316384,1.48457915,2547.6,2547.5,0.12287974]
[1729742317193,1.48457915,2547.6,2547.4,0.35363]
[1729742317399,0.8355,2547.7,2547.5,0.12288344]